Cogmind - Beta 12 X4 @@@ ROGUE MODE // 2022.12.08 @ 16:41:34 Player: Lunatic Blue Result: Destroyed by Lightning with EMDS Performance ------------- Evolutions (5) 2500 Regions Visited (11) 2200 Robots Destroyed (98) 490 Value Destroyed (2341) 2341 Prototype IDs (5) 100 Alien Tech Used (0) 0 Bonus (2949) 2949 TOTAL SCORE: 10580 Bonus ------- High Alert Combat Kills 102 Follower Combat Kills 1535 Entered DSFs 500 Network Hubs Disabled 400 Built Enhanced Grunts 300 A7 Reached Mainframe 300 Friendly Fire -188 Cogmind --------- Core Integrity 0/1000 Matter 300/300 Energy 314/315 System Corruption 15% Temperature Cool (30) Movement Hovering (230) Ox4 Location -5/Hub_04(d) Parts ------- > --- POWER (1) -------- Neutrino Core > --- PROPULSION (5) --- Gyrokinetic Inverter > --- UTILITY (8) ------ Medium Storage Unit Enhanced Optical Array Advanced Sensor Array Advanced Signal Interpreter Centrium Medium Armor Plating Improved Hacking Suite Improved Hacking Suite Improved System Shield > --- WEAPON (3) ------- Railgun Advanced KE Penetrator Ripper > --- INVENTORY (10) --- Fission Core Gravmag System Improved Transmission Jammer Improved Hacking Suite Improved Hacking Suite Improved System Shield Improved System Shield KE Penetrator Missile Launcher Remote Datajack Peak State ------------ > --- POWER ------------ Neutrino Core > --- PROPULSION ------- Flexi-carbon Leg Myomer Leg Myomer Leg Myomer Leg Myomer Leg > --- UTILITY ---------- Advanced Heat Sink Medium Storage Unit Enhanced Optical Array Improved Signal Interpreter Centrium Medium Armor Plating Hacking Suite Improved Hacking Suite Improved System Shield > --- WEAPON ----------- Beamcaster Railgun Advanced KE Penetrator > --- INVENTORY -------- Light Angular Momentum Engine Fission Core Gravmag Array Advanced Heat Sink Advanced Sensor Array Transmission Jammer Improved Medium Armor Plating Missile Launcher Ripper [Rating: 99] Favorites ----------- Power Neutrino Core Engine Ion Engine Power Core Neutrino Core Propulsion Flexi-carbon Leg Treads Light Treads Leg Flexi-carbon Leg Wheel Wheel Hover Unit Gravmag System Flight Unit Improved Flight Unit Utility Hacking Suite Device Advanced Sensor Array Storage Medium Storage Unit Processor Enhanced Optical Array Hackware Hacking Suite Protection Centrium Medium Armor Plating Weapon Improved Assault Rifle Energy Gun Heavy Laser Ballistic Gun Improved Assault Rifle Launcher Missile Launcher Impact Weapon Powered Hammer Slashing Weapon Ripper Build | -11 -10 -9 -8 -7 -7 -6 -5 -5 -5 -5 -5 ------- Run | Scr Mat Mat Mat Fac DSF Fac Fac Ext Cet Arc Hub Slots Evolved 10 | . . 2 2 2 . 2 2 . . . . Power . | . . . . . . . . . . . . Propulsion 3 | . . 1 1 1 . . . . . . . Utility 6 | . . . 1 1 . 2 2 . . . . Weapon 1 | . . 1 . . . . . . . . . Parts Attached 123 | 6 7 18 7 3 1 7 24 29 4 11 6 Power 10 | 1 1 4 1 . . . 3 . . . . Engine 8 | 1 1 4 1 . . . 1 . . . . Core 2 | . . . . . . . 2 . . . . Reactor . | . . . . . . . . . . . . Propulsion 51 | 2 2 9 3 2 . 3 9 16 . 4 1 Treads 12 | . 2 6 . . . . . 4 . . . Leg 14 | 2 . . . . . . . 12 . . . Wheel 2 | . . 2 . . . . . . . . . Hover 6 | . . . . . . . 1 . . 4 1 Flight 17 | . . 1 3 2 . 3 8 . . . . Utility 32 | 1 3 . 3 1 . 3 8 7 1 4 1 Device 8 | . 1 . . . . . 1 4 . 2 . Storage 5 | 1 2 . 1 . . . . 1 . . . Processor 7 | . . . . 1 . 1 3 1 . . 1 Hackware 10 | . . . 2 . . 2 4 . . 2 . Protection 2 | . . . . . . . . 1 1 . . Artifact . | . . . . . . . . . . . . Weapon 30 | 2 1 5 . . 1 1 4 6 3 3 4 Energy Gun 6 | . . . . . . . . 5 1 . . Energy Cannon . | . . . . . . . . . . . . Ballistic Gun 18 | 2 1 5 . . . 1 2 . 1 2 4 Ballistic Cannon . | . . . . . . . . . . . . Launcher 4 | . . . . . 1 . 1 1 1 . . Special Weapon . | . . . . . . . . . . . . Impact Weapon 1 | . . . . . . . 1 . . . . Slashing Weapon 1 | . . . . . . . . . . 1 . Piercing Weapon . | . . . . . . . . . . . . Special Melee Weapon . | . . . . . . . . . . . . Unidentified Prototypes 5 | . . 2 . . . 1 . . 2 . . Corrupted Parts 1 | . . . . . . . . 1 . . . System Corruption 3 | . . . . . . . . 3 . . . Parts Lost 22 | . 1 1 . . . . 16 1 . . 3 Power 2 | . . . . . . . 2 . . . . Propulsion 14 | . . 1 . . . . 9 1 . . 3 Utility 5 | . . . . . . . 5 . . . . Weapon 1 | . 1 . . . . . . . . . . Highest Loss Streak 11 | . 1 1 . . . . 11 1 . . 2 To Critical Strikes 1 | . . . . . . . . 1 . . . Average Slot Usage (%) 90 | . 90 99 66 76 80 86 68 87 100 95 91 Engine 5 | . 14 11 9 7 7 6 1 . . . . Core 2 | . . . . . . . 2 5 5 5 5 Treads 10 | . 11 29 . . . . . 4 . . . Leg 8 | . 16 . . . . . . 15 29 12 . Hover 2 | . . . . . . . . . . 11 21 Flight 3 | . . . 27 38 38 33 19 . . . . Device 7 | . 5 11 1 . . . . 11 6 5 5 Storage 6 | . 14 11 9 7 7 6 3 2 5 5 5 Processor 6 | . . . . 7 7 7 10 12 11 11 11 Hackware 11 | . . . 16 15 15 24 22 17 17 17 17 Protection 1 | . . . . . . . . 1 4 5 5 Energy Gun 4 | . . . . . . . . 11 12 2 . Ballistic Gun 13 | . 27 32 3 . . 2 2 . 3 9 10 Naked Turns . | . . . . . . . . . . . . Heaviest Build 56 | 13 48 56 13 13 19 19 22 41 47 49 47 Greatest Support 120 | 20 46 75 15 19 19 25 27 120 120 120 49 Greatest Overweight (x) 4 | . 1 3 . . . . . 1 . 1 4 Average Overweight (x) . | . . . . . . . . . . . . Largest Inventory Capacity 20 | 8 20 20 20 10 10 10 10 10 10 10 10 Average Capacity 12 | 6 13 20 11 10 10 10 8 7 10 10 10 Most Carried 20 | 3 13 20 20 9 10 10 10 10 10 10 10 Average Carried 10 | 1 8 18 10 7 9 9 6 6 10 9 9 Final Capacity 20 | 8 20 20 10 10 10 10 5 10 10 10 10 Final Carried 20 | 3 13 20 10 8 10 10 5 10 10 10 10 Class Distribution -------------------- 25% | Gunner 17% | Hacker-Skirmisher 13% | Mutant 9% | Hacker-Sprinter 6% | Hacker-Mutant 6% | Scavenger-Scout 5% | Commander-Skirmisher 5% | Scavenger-Mutant 3% | Hacker-Scout 3% | Hacker-Tank Dominant Class ---------------- Mutant | -10/Materials Gunner | -9/Materials Hacker-Mutant | -8/Materials Hacker-Mutant | -7/Factory Hacker-Sprinter | -7/DSF Hacker-Sprinter | -6/Factory Hacker-Sprinter | -5/Factory Hacker-Skirmisher | -5/Extension Hacker-Tank | -5/Cetus Scavenger-Mutant | -5/Archives Scavenger-Scout | -5/Hub_04(d) Resources | -11 -10 -9 -8 -7 -7 -6 -5 -5 -5 -5 -5 ----------- Run | Scr Mat Mat Mat Fac DSF Fac Fac Ext Cet Arc Hub Matter Collected 2509 | 200 246 781 . . . 17 321 493 72 216 163 Remotely . | . . . . . . . . . . . . Salvage Created 2795 | . 348 1138 . . . 17 321 510 62 293 106 Parts 193 | . 24 96 . . . 4 22 13 3 19 12 Haulers Intercepted 4 | . 1 3 . . . . . . . . . Recyclers Shooed 2 | . . . . . . . . 2 . . . Parts Field Recycled . | . . . . . . . . . . . . Retrieved Matter . | . . . . . . . . . . . . Parts Self-Destructed . | . . . . . . . . . . . . Prevented . | . . . . . . . . . . . . Kills | -11 -10 -9 -8 -7 -7 -6 -5 -5 -5 -5 -5 ------- Run | Scr Mat Mat Mat Fac DSF Fac Fac Ext Cet Arc Hub Combat Hostiles Destroyed 57 | . 11 32 . . . . 4 6 4 . . Guns 47 | . 11 31 . . . . . 4 1 . . AOE 8 | . . 1 . . . . 3 1 3 . . Classes Destroyed 13 | . 4 4 . . . . 4 1 . . . Worker 9 | . . 6 . . . . 1 . . . 2 Builder 3 | . . 1 . . . . 1 1 . . . Tunneler 2 | . . . . . . . 2 . . . . Hauler 4 | . 1 3 . . . . . . . . . Recycler 2 | . . . . . . . 1 1 . . . Mechanic 1 | . . . . . . . 1 . . . . Operator 15 | . 1 4 . . . . 1 . . 8 1 Watcher 5 | . . 2 . . . 1 1 . . . 1 Swarmer 27 | . 6 17 . . . . . . 4 . . Cutter 4 | . . . . . . . 4 . . . . Grunt 21 | . 5 12 . . . . . 4 . . . Sentry 4 | . . 3 . . . . . 1 . . . Hunter 1 | . . . . . . . . 1 . . . Best Kill Streak 11 | . 7 11 . . . 1 4 3 4 2 2 Combat Bots Only 7 | . 7 7 . . . . 3 2 4 . . Max Kills in Single Turn 4 | . 2 3 . . . 1 3 2 4 1 1 Gunslinging 1 | . 1 1 . . . . . . . . . Exploded 3 | . . 1 . . . . 2 1 3 . . Melee . | . . . . . . . . . . . . Uniques/NPCs Destroyed . | . . . . . . . . . . . . Combat | -11 -10 -9 -8 -7 -7 -6 -5 -5 -5 -5 -5 -------- Run | Scr Mat Mat Mat Fac DSF Fac Fac Ext Cet Arc Hub Damage Taken 4519 | . 562 886 31 . . 3 1509 532 85 74 837 Core 1333 | . 127 158 15 . . . 649 148 . . 236 Absorbed by Shields 70 | . . . . . . . . 70 . . . Regen/Repaired (Parts) 66 | . . . . . . . 66 . . . . Core Remaining (%) 84 | 100 49 60 97 . 100 100 . . . . . Volleys Fired 164 | . 45 66 . . . 8 3 26 1 4 11 Largest 3 | . 2 3 . . . 1 2 3 3 3 2 Hottest 225 | . 40 69 . . . 15 51 225 140 179 70 Shots Fired 398 | . 89 198 . . . 8 4 64 3 13 19 Gun 394 | . 89 198 . . . 8 2 63 2 13 19 Cannon . | . . . . . . . . . . . . Launcher 4 | . . . . . . . 2 1 1 . . Special . | . . . . . . . . . . . . Kinetic 325 | . 89 198 . . . 8 2 . 1 8 19 Thermal 69 | . . . . . . . . 63 1 5 . Explosive 4 | . . . . . . . 2 1 1 . . Electromagnetic . | . . . . . . . . . . . . Robot Hit Streak 15 | . 5 15 . . . 3 3 11 . 5 3 Robot Miss Streak 5 | . 4 5 . . . 3 1 4 . 2 4 Penetration Max 2 | . . . . . . . . . . . 2 Secondary Targets 11 | . 2 9 . . . . . . . . . Max Gunslinging Chain 1 | . 1 1 . . . . . . . . . Shots Hit Robots 262 | . 51 120 . . . 3 10 42 . 23 13 Core Hits 137 | . 23 65 . . . 2 8 20 4 8 7 Critical Kills . | . . . . . . . . . . . . Critical Parts Destroyed 3 | . 2 1 . . . . . . . . . Critical Strikes 8 | . 2 1 . . . . . 3 . 2 . Burn 5 | . . . . . . . . 3 . 2 . Destroy 3 | . 2 1 . . . . . . . . . Melee Attacks 32 | . . . . . . . 11 . . 14 7 Impact 11 | . . . . . . . 11 . . . . Slashing 21 | . . . . . . . . . . 14 7 Piercing . | . . . . . . . . . . . . Sneak Attacks 17 | . . . . . . . 4 . . 10 3 Combat Hostiles . | . . . . . . . . . . . . Follow-up Attacks . | . . . . . . . . . . . . Damage Inflicted 7253 | . 529 1990 . . . 72 1213 1293 264 1296 596 Guns 4121 | . 529 1880 . . . 66 45 990 18 238 355 Cannons . | . . . . . . . . . . . . Explosions 1225 | . . 110 . . . . 571 298 246 . . Melee 1870 | . . . . . . . 571 . . 1058 241 Ramming 37 | . . . . . . 6 26 5 . . . Kinetic 3055 | . 529 1880 . . . 66 45 . . 180 355 Thermal 1395 | . . . . . . . 329 990 18 58 . Explosive 786 | . . . . . . . 242 298 246 . . Electromagnetic 110 | . . 110 . . . . . . . . . Impact 571 | . . . . . . . 571 . . . . Slashing 1299 | . . . . . . . . . . 1058 241 Piercing . | . . . . . . . . . . . . Highest Corruption 14 | . . 1 . . . . 5 9 9 9 14 Average Corruption 6 | . . 1 . . . . 5 6 9 9 9 Corruption Purged . | . . . . . . . . . . . . Corruption Blocked . | . . . . . . . . . . . . Effects 74 | . . 2 . . . . 3 33 9 17 10 Message Errors 12 | . . . . . . . . 7 . 2 3 Matter Fused 19 | . . . . . . . . 13 1 4 1 Heat Flow Errors 12 | . . 2 . . . . 1 . 3 3 3 Energy Discharges 10 | . . . . . . . 1 4 1 4 . Parts Rejected 3 | . . . . . . . 1 1 . . 1 Data Loss (minor) 5 | . . . . . . . . 5 . . . Data Loss (major) 5 | . . . . . . . . . 3 1 1 Misfires 5 | . . . . . . . . 2 . 2 1 Alerts 1 | . . . . . . . . . 1 . . Weapon Failures 2 | . . . . . . . . 1 . 1 . Overload Shots . | . . . . . . . . . . . . Overflow Damage 835 | . . . . . . . 417 . . 336 82 Projectiles . | . . . . . . . . . . . . Explosions 66 | . . . . . . . 66 . . . . Melee 769 | . . . . . . . 351 . . 336 82 Knockbacks 4 | . . . . . . . 4 . . . . Impact 4 | . . . . . . . 4 . . . . Kinetic . | . . . . . . . . . . . . Secondary . | . . . . . . . . . . . . Self-Inflicted Damage 380 | . . 75 . . . 3 302 . . . . Shots 7 | . . 2 . . . . 5 . . . . Rammed 4 | . . . . . . 1 3 . . . . Targets Rammed 5 | . . . . . . 1 3 1 . . . Kicked 1 | . . . . . . . . 1 . . . Crushed . | . . . . . . . . . . . . Highest Temperature 299 | . 18 109 . . . . 218 263 218 227 299 Average Temperature 68 | . 8 20 . . . . 75 93 90 109 108 Received Heat Transfer 617 | . 141 186 9 . . . 108 119 . . 54 Effects 1 | . . . . . . . . . . . 1 Energy Bleed 1 | . . . . . . . . . . . 1 Siege Activations . | . . . . . . . . . . . . Robots Corrupted . | . . . . . . . . . . . . Combat Hostiles . | . . . . . . . . . . . . Parts Fried 9 | . . 1 . . . . 8 . . . . Impact Corruptions 13 | . . . . . . . 13 . . . . Robots Melted 1 | . . . . . . . . 1 . . . Combat Hostiles 1 | . . . . . . . . 1 . . . Parts Melted 6 | . . . . . . . . 6 . . . Heat Transferred 2346 | . . . . . . . 200 1850 37 259 . Parts Sabotaged . | . . . . . . . . . . . . Parts Stolen . | . . . . . . . . . . . . Parts Stripped . | . . . . . . . . . . . . Power Chain Reactions . | . . . . . . . . . . . . Missiles Intercepted . | . . . . . . . . . . . . Alert | -11 -10 -9 -8 -7 -7 -6 -5 -5 -5 -5 -5 ------- Run | Scr Mat Mat Mat Fac DSF Fac Fac Ext Cet Arc Hub Peak Influence 1067 | . 292 712 253 64 44 45 296 479 538 430 1067 Initial 253 | . . 76 253 61 44 23 21 44 245 207 150 Average 218 | . 169 227 173 63 44 30 139 159 388 377 503 Maximum Alert Level 3 | . 1 3 1 . . . 1 2 2 2 3 Low Security (%) 55 | 100 46 56 59 100 100 100 74 76 . . 20 Level 1 27 | . 53 27 40 . . . 25 10 63 55 21 Level 2 14 | . . 15 . . . . . 13 36 44 33 Level 3 1 | . . . . . . . . . . . 25 Level 4 . | . . . . . . . . . . . . Level 5 . | . . . . . . . . . . . . High Security . | . . . . . . . . . . . . Max Security . | . . . . . . . . . . . . Squads Dispatched 17 | . 1 6 . . 1 . 2 1 . . 6 Investigation 5 | . . 1 . . . . . 1 . . 3 Extermination . | . . . . . . . . . . . . Reinforcement 12 | . 1 5 . . 1 . 2 . . . 3 Assault . | . . . . . . . . . . . . Garrison . | . . . . . . . . . . . . Intercept . | . . . . . . . . . . . . Searches Triggered . | . . . . . . . . . . . . Construction Impeded 1 | . . . . . . . . . . . 1 Haulers Reinforced . | . . . . . . . . . . . . Active Scanning Responses . | . . . . . . . . . . . . Cargo Convoy Interrupts . | . . . . . . . . . . . . Stealth | -11 -10 -9 -8 -7 -7 -6 -5 -5 -5 -5 -5 --------- Run | Scr Mat Mat Mat Fac DSF Fac Fac Ext Cet Arc Hub Distress Signals 7 | . 1 1 . . . . . . 1 . 4 Communications Jammed . | . . . . . . . . . . . . Distress Signals . | . . . . . . . . . . . . Times Spotted 161 | . 21 46 2 . . 1 18 30 9 12 22 Peak Tracking Total 9 | . 6 4 3 . . 1 9 8 5 2 8 Tactical Retreats 10 | . 4 2 . . . . 2 2 . . . Traps | -11 -10 -9 -8 -7 -7 -6 -5 -5 -5 -5 -5 ------- Run | Scr Mat Mat Mat Fac DSF Fac Fac Ext Cet Arc Hub Traps Triggered 5 | . 1 1 . . . . 1 2 . . . Indirectly . | . . . . . . . . . . . . Trap Hack Attempts . | . . . . . . . . . . . . Triggered . | . . . . . . . . . . . . Disarmed . | . . . . . . . . . . . . Reprogrammed . | . . . . . . . . . . . . Reused . | . . . . . . . . . . . . Traps Extracted . | . . . . . . . . . . . . Installed . | . . . . . . . . . . . . Triggered . | . . . . . . . . . . . . Machines | -11 -10 -9 -8 -7 -7 -6 -5 -5 -5 -5 -5 ---------- Run | Scr Mat Mat Mat Fac DSF Fac Fac Ext Cet Arc Hub Machines Disabled 11 | . . 2 . . . . 5 . . 3 1 Max in Single Turn 5 | . . 2 . . . . 5 . . 1 1 Garrison Access 1 | . . . . . . . . . . . 1 Network Hub 2 | . . . . . . . . . . . 2 Machines Sabotaged 2 | . . . . . . . . . . . 2 Overloaded Fab Kills . | . . . . . . . . . . . . Hacking | -11 -10 -9 -8 -7 -7 -6 -5 -5 -5 -5 -5 --------- Run | Scr Mat Mat Mat Fac DSF Fac Fac Ext Cet Arc Hub Machines Accessed 28 | . . 3 3 1 . 2 4 10 1 . 4 Terminals 23 | . . 2 3 1 . 1 2 10 1 . 3 Fabricators 1 | . . . . . . . 1 . . . . Repair Stations 1 | . . . . . . . 1 . . . . Recycling Units . | . . . . . . . . . . . . Scanalyzers 2 | . . 1 . . . 1 . . . . . Garrison Access 1 | . . . . . . . . . . . 1 Total Hacks 66 | . . 7 7 2 . 3 15 22 2 . 8 Successful 38 | . . 4 5 1 . 2 7 13 1 . 5 Failed 28 | . . 3 2 1 . 1 8 9 1 . 3 Catastrophic 3 | . . 1 . . . . 2 . . . . Database Lockouts . | . . . . . . . . . . . . Manual 28 | . . 4 8 . . 1 6 3 1 . 5 Terminals 52 | . . 4 7 2 . 1 9 22 2 . 5 Fabricators 2 | . . . . . . . 2 . . . . Repair Stations 4 | . . . . . . . 4 . . . . Recycling Units . | . . . . . . . . . . . . Scanalyzers 5 | . . 3 . . . 2 . . . . . Garrison Access 3 | . . . . . . . . . . . 3 Terminal Hacks 20 | . . 1 2 1 . . 2 12 1 . 1 Record 3 | . . . . . . . . 3 . . . Open Door 9 | . . . . . . . . 8 1 . . Open DSF 2 | . . . . 1 . . 1 . . . . Level Access Points 2 | . . . 1 . . . 1 . . . . Terminal Index 2 | . . . . . . . . 1 . . 1 Unreport Threat 2 | . . 1 1 . . . . . . . . Fabricator Hacks 2 | . . . . . . . 2 . . . . Load Schematic 1 | . . . . . . . 1 . . . . Build 1 | . . . . . . . 1 . . . . Repair Station Hacks 2 | . . . . . . . 2 . . . . Scan Component 1 | . . . . . . . 1 . . . . Repair 1 | . . . . . . . 1 . . . . Recycling Unit Hacks . | . . . . . . . . . . . . Scanalyzer 5 | . . 3 . . . 2 . . . . . Insert Component 2 | . . 1 . . . 1 . . . . . Analyze 3 | . . 2 . . . 1 . . . . . Garrison Access Hacks 1 | . . . . . . . . . . . 1 Seal Access 1 | . . . . . . . . . . . 1 Unauthorized Hacks 8 | . . . 3 . . . 1 1 . . 3 Terminals 8 | . . . 3 . . . 1 1 . . 3 Assimilate 1 | . . . 1 . . . . . . . . Botnet 2 | . . . 1 . . . . 1 . . . Operators 2 | . . . 1 . . . 1 . . . . Sabotage 3 | . . . . . . . . . . . 3 Fabricators . | . . . . . . . . . . . . Repair Stations . | . . . . . . . . . . . . Recycling Units . | . . . . . . . . . . . . Scanalyzers . | . . . . . . . . . . . . Garrison Access . | . . . . . . . . . . . . Data Cores Recovered . | . . . . . . . . . . . . Used . | . . . . . . . . . . . . Hacking Detections 11 | . . 2 2 . . 1 2 3 1 . . Full Trace Events . | . . . . . . . . . . . . Feedback Events . | . . . . . . . . . . . . Feedback Blocked . | . . . . . . . . . . . . Robot Schematics Acquired . | . . . . . . . . . . . . Robots Built . | . . . . . . . . . . . . Authchips . | . . . . . . . . . . . . Time . | . . . . . . . . . . . . Total Robot Build Rating . | . . . . . . . . . . . . Part Schematics Acquired 2 | . . 1 . . . 1 . . . . . Parts Built 2 | . . . . . . . 2 . . . . Authchips 1 | . . . . . . . 1 . . . . Time 31 | . . . . . . . 31 . . . . Total Part Build Rating 10 | . . . . . . . 10 . . . . Parts Repaired 1 | . . . . . . . 1 . . . . Time 26 | . . . . . . . 26 . . . . Parts Recycled . | . . . . . . . . . . . . Recycled Matter . | . . . . . . . . . . . . Retrieved Matter . | . . . . . . . . . . . . Retrieved Components . | . . . . . . . . . . . . Parts Scanalyzed 2 | . . 1 . . . 1 . . . . . Part Schematics Acquired 2 | . . 1 . . . 1 . . . . . Parts Damaged . | . . . . . . . . . . . . Bothacking | -11 -10 -9 -8 -7 -7 -6 -5 -5 -5 -5 -5 ------------ Run | Scr Mat Mat Mat Fac DSF Fac Fac Ext Cet Arc Hub Used RIF Installer . | . . . . . . . . . . . . Robots Hacked . | . . . . . . . . . . . . Non-combat . | . . . . . . . . . . . . Combat . | . . . . . . . . . . . . Robot Hacks Applied . | . . . . . . . . . . . . Relay Couplers Released . | . . . . . . . . . . . . Fabnet Peak Effective % . | . . . . . . . . . . . . Robots Rewired 12 | . . . . . . . . 12 . . . Allies Hacked . | . . . . . . . . . . . . Hacks Repelled . | . . . . . . . . . . . . Allies | -11 -10 -9 -8 -7 -7 -6 -5 -5 -5 -5 -5 -------- Run | Scr Mat Mat Mat Fac DSF Fac Fac Ext Cet Arc Hub Total Allies 28 | . . . . . . . . 23 5 . . Largest Group 15 | . . . . . . . . 15 13 10 6 Highest-Rated Group 745 | . . . . . . . . 521 745 649 430 Highest-Rated Ally 159 | . . . . . . . . 159 140 137 96 Total Orders 1 | . . . . . . . . . 1 . . AID 1 | . . . . . . . . . 1 . . Ally Attacks 286 | . . . . . . . . 134 54 38 60 Total Damage 8357 | . . . . . . . . 3349 1323 1342 2343 Kills 52 | . . . . . . . . 22 8 5 17 Allies Corrupted 2 | . . . . . . . . . . . 2 Allies Melted . | . . . . . . . . . . . . Intel | -11 -10 -9 -8 -7 -7 -6 -5 -5 -5 -5 -5 ------- Run | Scr Mat Mat Mat Fac DSF Fac Fac Ext Cet Arc Hub Robot Analysis Total . | . . . . . . . . . . . . Derelict Logs Recovered . | . . . . . . . . . . . . Drone Launches . | . . . . . . . . . . . . Drone Recoveries . | . . . . . . . . . . . . Exploration | -11 -10 -9 -8 -7 -7 -6 -5 -5 -5 -5 -5 ------------- Run | Scr Mat Mat Mat Fac DSF Fac Fac Ext Cet Arc Hub Turns Passed 4774 | 75 553 1215 67 19 29 154 452 1300 258 348 304 Spaces Moved 3998 | 52 264 583 138 47 67 410 840 788 120 249 440 Core 126 | 4 . . . . . . 122 . . . . Treads 551 | . 76 409 . . . . . 66 . . . Legs 1000 | 48 188 . . . . . . 592 120 52 . Wheels 174 | . . 174 . . . . . . . . . Hover 803 | . . . . . . . 36 130 . 197 440 Flight 1344 | . . . 138 47 67 410 682 . . . . Fastest Speed 16 | 50 120 125 34 31 31 28 16 60 120 48 48 Average Speed 86 | 114 153 153 34 31 31 30 34 120 120 103 54 Slowest Speed 240 | 120 240 240 34 31 31 31 60 240 120 131 230 Overloaded Moves 47 | . . . . . . . 47 . . . . Propulsion Burnouts 1 | . . . . . . . 1 . . . . Robots Hopped 18 | . . . 8 . 1 3 5 1 . . . Cave-ins Triggered . | . . . . . . . . . . . . Exploration Rate (%) 44 | 4 44 56 18 1 77 11 20 88 69 98 47 Regions Visited 11 Branch Regions 4 Pre-discovered Areas . | . . . . . . . . . . . . Known Exits Taken 7 | . . . 1 1 . 1 1 1 1 1 . Unknown Exits Taken 3 | 1 1 1 . . . . . . . . . Scrap Searched . | . . . . . . . . . . . . Spaces Dug 13 | . . . . . . . 1 9 . . 3 Terrain Destroyed 75 | . . 2 . . . . 38 9 17 1 8 Melee 4 | . . . . . . . 1 . . . 3 Projectile 8 | . . . . . . . . . 2 1 5 AOE 63 | . . 2 . . . . 37 9 15 . . Terrain Rammed . | . . . . . . . . . . . . Walls Destroyed . | . . . . . . . . . . . . Machines Disabled . | . . . . . . . . . . . . Actions | -11 -10 -9 -8 -7 -7 -6 -5 -5 -5 -5 -5 --------- Run | Scr Mat Mat Mat Fac DSF Fac Fac Ext Cet Arc Hub Total 4962 | 64 333 779 155 50 75 428 971 1082 231 314 480 Wait 432 | 4 . 49 . . . . 82 171 103 16 7 Move 3954 | 51 263 582 123 46 64 403 830 785 119 248 440 Hop 15 | . . . 6 . 1 3 4 1 . . . Pick Up 91 | 3 13 29 8 1 6 2 6 11 1 8 3 Fast Attach 54 | 6 3 5 . . . 2 11 18 2 5 2 Attach 33 | . 3 3 6 3 1 2 9 4 . 1 1 Detach 7 | . . 2 1 . . 1 2 1 . . . Swap 36 | . 1 10 1 . . 3 4 7 2 5 3 Drop 97 | . 5 33 10 . 3 3 6 15 3 13 6 Fire 164 | . 45 66 . . . 8 3 26 1 4 11 Melee 32 | . . . . . . . 11 . . 14 7 Ram 4 | . . . . . . 1 3 . . . . Kick 1 | . . . . . . . . 1 . . . Crush . | . . . . . . . . . . . . Escape Stasis . | . . . . . . . . . . . . Rewire 42 | . . . . . . . . 42 . . . Trap . | . . . . . . . . . . . . Miscellaneous . | . . . . . . . . . . . . Route ------- -11/Scrapyard -10/Materials (discovered 2 exits: *Mat / [*Min]) -9/Materials -8/Materials (discovered 4 exits: *Fac x3 / [*Sto]) -7/Factory -7/DSF -6/Factory (discovered 3 exits: *Fac / *Low x2) -5/Factory (discovered 5 exits: *Fac x4 / *Ext) -5/Extension (discovered 2 exits: *Fac / *Cet) -5/Cetus -5/Archives (discovered 3 exits: *Fac / *Hub x2) -5/Hub_04(d) (discovered 1 exit: *Fac) History --------- Turn | Location | Event 3 | -11/Scrapyard | Discovered new exit (range 15) 76 | -11/Scrapyard | Entered Materials 201 | -10/Materials | Destroyed 7 combat bots 314 | -10/Materials | Build established: Mutant 366 | -10/Materials | Discovered new exit (range 9) 453 | -10/Materials | Core integrity fell below 50% 561 | -10/Materials | Discovered new exit (range 9) 629 | -10/Materials | Entered another Materials area 629 | -9/Materials | Evolved 2 slots: Propulsion x1, Weapon x1 930 | -9/Materials | Build established: Gunner 1423 | -9/Materials | Destroyed 7 combat bots 1826 | -9/Materials | Discovered new exit (range 6) 1844 | -9/Materials | Entered another Materials area 1844 | -8/Materials | Evolved 2 slots: Propulsion x1, Utility x1 1892 | -8/Materials | Identified exit to Factory 1902 | -8/Materials | Discovered new exit (range 11) 1911 | -8/Materials | Entered Factory 1911 | -7/Factory | Evolved 2 slots: Propulsion x1, Utility x1 1916 | -7/Factory | Identified exit to DSF 1930 | -7/Factory | Entered DSF 1944 | -7/DSF | Discovered new exit (range 19) 1958 | -7/DSF | Additional patrols routed to DSF 1959 | -7/DSF | Entered Factory 1959 | -6/Factory | Evolved 2 slots: Utility x2 1988 | -6/Factory | Discovered new exit (range 6) 2028 | -6/Factory | Discovered new exit (range 9) 2035 | -6/Factory | Discovered new exit (range 10) 2097 | -6/Factory | Identified exit to Lower Caves 2112 | -6/Factory | Identified exit to Factory 2113 | -6/Factory | Entered another Factory area 2113 | -5/Factory | Evolved 2 slots: Utility x2 2161 | -5/Factory | Fabricated Nuclear Pulse Thruster (x2) 2209 | -5/Factory | Build established: Hacker-Sprinter 2213 | -5/Factory | Identified exit to Factory 2283 | -5/Factory | Repaired Imp. Heavy Machine Gun 2434 | -5/Factory | Lost 11 parts (2p6n3u) 2472 | -5/Factory | Core integrity fell below 50% 2497 | -5/Factory | Lost 4 parts (2n2u) 2553 | -5/Factory | Discovered new exit (range 11) 2559 | -5/Factory | Identified exit to Extension 2565 | -5/Factory | Entered Extension 2608 | -5/Extension | Rescued a captive Derelict 2609 | -5/Extension | Rescued a captive Derelict 2637 | -5/Extension | Rescued a captive Derelict 2638 | -5/Extension | Rescued a captive Derelict 2696 | -5/Extension | Rescued A7 2825 | -5/Extension | Rescued a captive Derelict 2866 | -5/Extension | Rescued a captive Derelict 2872 | -5/Extension | Rescued a captive Derelict 2872 | -5/Extension | Rescued a captive Derelict 3101 | -5/Extension | Build established: Hacker-Skirmisher 3223 | -5/Extension | Spotted B-75 Beast 3250 | -5/Extension | Spotted B-75 Beast 3257 | -5/Extension | Allies destroyed B-75 Beast 3274 | -5/Extension | Allies destroyed B-75 Beast 3376 | -5/Extension | Rescued a captive Derelict 3673 | -5/Extension | Rescued a captive Derelict 3829 | -5/Extension | Discovered exit to Factory (range 10) 3830 | -5/Extension | Discovered new exit (range 6) 3837 | -5/Extension | Identified exit to Cetus 3865 | -5/Extension | Entered Cetus 3865 | -5/Cetus | Accompanied by 13 allies (A7) 3870 | -5/Cetus | Acquired a Cetus Manufacturing Module code from A7 3876 | -5/Cetus | Spotted Cetus Guard 3881 | -5/Cetus | Spotted Cetus Guard 3883 | -5/Cetus | Spotted Cetus Guard 3884 | -5/Cetus | Spotted Cetus Guard 3894 | -5/Cetus | Allies destroyed Cetus Guard 3903 | -5/Cetus | Allies destroyed Cetus Guard 3908 | -5/Cetus | Allies destroyed Cetus Guard 3909 | -5/Cetus | Allies destroyed Cetus Guard 3978 | -5/Cetus | Started Cetus Manufacturing Module 3988 | -5/Cetus | Escorted A7 to Cetus Mainframe 4003 | -5/Cetus | Manufactured an Enhanced Grunt 4016 | -5/Cetus | Discovered new exit (range 22) 4028 | -5/Cetus | Manufactured an Enhanced Grunt 4052 | -5/Cetus | Identified exit to Archives 4053 | -5/Cetus | Manufactured an Enhanced Grunt 4078 | -5/Cetus | Manufactured an Enhanced Grunt 4103 | -5/Cetus | Manufactured an Enhanced Grunt 4123 | -5/Cetus | Entered Archives 4123 | -5/Archives | Accompanied by 10 allies (A7) 4128 | -5/Archives | Received a hacking code to weaken MAIN.C 4160 | -5/Archives | Discovered new exit (range 21) 4172 | -5/Archives | Discovered new exit (range 22) 4177 | -5/Archives | Discovered exit to Factory (range 22) 4455 | -5/Archives | Identified exit to Hub_04(d) 4471 | -5/Archives | Entered Hub_04(d) 4471 | -5/Hub_04(d) | Accompanied by 6 allies 4526 | -5/Hub_04(d) | Discovered exit to Factory (range 15) 4679 | -5/Hub_04(d) | Network Hub disabled 4698 | -5/Hub_04(d) | Core integrity fell below 20% 4711 | -5/Hub_04(d) | Network Hub disabled 4716 | -5/Hub_04(d) | Spotted Lightning 4721 | -5/Hub_04(d) | Build established: Scavenger-Scout 4724 | -5/Hub_04(d) | Spotted Lightning 4726 | -5/Hub_04(d) | Spotted Lightning 4729 | -5/Hub_04(d) | System corruption reached 10% 4775 | -5/Hub_04(d) | Destroyed by Lightning with EMDS Last Messages --------------- 04732_ Acquired 9 matter. 04732_ Penetrated by EMDS Slug. 04733_ Slug penetrates Wall. 04734_ System corrupted: Matter fused (-8). 04734_ Acquired 8 matter. 04734_ EMDS Slug penetrates Wall. 04737_ Slug penetrates Wall. 04739_ Penetrated by EMDS Slug. 04739_ EMDS Slug penetrates Door. 04739_ Gravmag System destroyed. 04740_ EMDS Slug penetrates Wall. 04765_ Sneak attack on T-07 Excavator. 04765_ Destroyed Imp. Terrain Scanner. 04765_ Destroyed Lgt. Ion Engine. 04766_ System corrupted: Heat flow error (+216). 04768_ EMDS Slug penetrates Wall. 04772_ R-10 Processor exits level. 04773_ Penetrated by EMDS Slug. 04773_ Gravmag Array destroyed. 04775_ Penetrated by EMDS Slug. Map ----- +----------------------------------------------------+ | ????# ???????"""?????????????????????????????? | | ????# "??????? ?????????????????????????????? | | ????# ??#/###+#########?????????????????????? | | ????# ""??# ##########????????????? | | ????# ?+ # !! #????????????? | | ????# """?# " " " !! #????????????? | | ????# # #### # " " ! #????????????? | | ????# """ # #??# /[" " #????????????? | | ????# + #??# # *#????????????? | | ????############### #??# # " " " #????????????? | | ??????????????????# #??# # " " " #????????????? | | ??????????????????# #??# # " " " #????????????? | | ??????????????????# #??# # #????????????? | | ?????????????######+#### ###########???????????? | | ?????????????# # # #???????????? | | ?????????????# " " " " # # """"#???????????? | | ?????????????# " " " " # # """"#???????????? | | ?????????????# " "!" " + # """"#???????????? | | ?????????????# =*/ # # """"#???????????? | | ?????????????# !%! ]# # #????????##?? | | ?????????????# " "" # # #?????? #?? | | ?????????????# """"" # # #????"""" " | | ?????????????########### #####+###+#?? " " | | ????????????????# [%!===% # " | | ????????????????# < *%%!% w k k "?? | | ????????????????# =k%% @ hh # #?? | | ????????????????######+#########/##### #?? | | ???????##########???????????# #? #?? | | ???????# #???????????# """" #########/#?? | | ???????# #???????????# """" ## +???? | | ???????# """" #???????????# """" ## #???? | | ???????# """" #???????????# """" ## #???? | | ???????# """" #???????????#[[ ## #???? | | ???????# """" #???????????#[[ ! ## """" #???? | | ???????# #???????????#[[ = ## """" #???? | | ???????? #???????????# ## """" #???? | | ?????????? ?????????????###+####/## """" #???? | | ??????????##+################## #### #?? ????? | | ??????????# * ! !#####/####### | | ??????????# !%= !%= ===%==% + | | ??????????# ! [ ########=####### | | ??????????# #####+############+#########/####??? | | ??????????# # ## [# #### | | ??????????# # ##! ! # """ """ #"## | | ??????????# # / ## # /!%# | | ??????????# # ## """" # """ """=#!!# | | ??????????# # ## """" # !]!=%" | | ?########## # ## """" # ""T"" %#=%# | | ?# # ################ """" # """"" !#%=# | | ?#"""" # # #????# # #=%[ | +----------------------------------------------------+ Best States ------------- Heat Dissipation 59 Energy Generation 19 Energy Capacity 315 Matter Stores 300 Matter Capacity 300 Sight Range 22 Robot Scan Range 16 Terrain Scan Density 10 Jamming Range 12 Additional Mass Support 6 Armor Coverage 225 Evasion (%) 65 Recoil Reduction 3 Offensive Hacking 30 Defensive Hacking 20 Authchip Count 2 Item Schematics ----------------- Imp. Assault Rifle | -9/Materials | Scanalyzed Nuclear Pulse Thruster | -6/Factory | Scanalyzed Robot Schematics ------------------ None Fabricated ------------ Nuclear Pulse Thruster | x2 | -5/Factory | Authchip Alien Tech Used ----------------- None Achievements -------------- None Challenges ------------ None Game ------ Seed BombardmentAblativeTreads Manual? 0 Play Time 00:55:54 Cumulative 126.5 hours Start 2022.12.08 @ 15:47:19 End 2022.12.08 @ 16:41:34 Sessions 1 Manual Loads 0 Difficulty Rogue Special Mode None Game No. 224 Rogue 224 Adventurer 0 Explorer 0 Win Type - Total 2 Types 1/0/1/0/0/0/0/0/0 Lore% 65 Gallery% 72 Achievement% 53 Wizard Run 0 Options --------- ASCII 0 Keyboard 0 Movement Mouse Keybinds 0 Fullscreen 1 Font 18/SmallcapsGlow Map View 76x50 Tactical HUD 1 Map Filters NONE Filters NONE Steam 1 RUN: b95c8394-cd30-4810-88f9-26b8219ebe57